[Event "Titled Tuesday Blitz November 07 Late 2023"]
[White "Domingo Nunez, Ruben"]
[Black "SlippperyWhenWet"]
[WhiteFideId "22245570"]
[WhiteElo "2657"]
[BlackElo "2335"]
[Result "1-0"]
[Round "1"]
[TimeControl "180+1"]
[Date "2023.11.07"]
[WhiteClock "0:01:19"]
[BlackClock "0:00:25"]
[Board "101"]

1. e4 {[%clk 0:03:00]}  g6 {[%clk 0:02:55]} 2. h4 {[%clk 0:02:59]}  h5 {[%clk 0:02:54]} 3. Nh3 {[%clk 0:02:59]}  Bg7 {[%clk 0:02:54]} 4. Ng5 {[%clk 0:03:00]}  d6 {[%clk 0:02:52]} 5. d4 {[%clk 0:03:00]}  e6 {[%clk 0:02:52]} 6. c4 {[%clk 0:02:59]}  Ne7 {[%clk 0:02:52]} 7. Nc3 {[%clk 0:03:00]}  a6 {[%clk 0:02:47]} 8. Be3 {[%clk 0:03:00]}  Nd7 {[%clk 0:02:46]} 9. Be2 {[%clk 0:03:00]}  b6 {[%clk 0:02:37]} 10. Qd2 {[%clk 0:02:57]}  Bb7 {[%clk 0:02:37]} 11. O-O-O {[%clk 0:02:57]}  c5 {[%clk 0:02:31]} 12. Kb1 {[%clk 0:02:56]}  Rc8 {[%clk 0:02:28]} 13. dxc5 {[%clk 0:02:46]}  dxc5 {[%clk 0:02:26]} 14. Nxf7 {[%clk 0:02:46]}  Kxf7 {[%clk 0:02:21]} 15. Qxd7 {[%clk 0:02:46]}  Qxd7 {[%clk 0:02:14]} 16. Rxd7 {[%clk 0:02:47]}  Bxc3 {[%clk 0:02:14]} 17. Rxb7 {[%clk 0:02:43]}  Bf6 {[%clk 0:02:11]} 18. Rxb6 {[%clk 0:02:38]}  Rb8 {[%clk 0:02:10]} 19. Bxc5 {[%clk 0:02:37]}  Rhc8 {[%clk 0:02:07]} 20. Rxb8 {[%clk 0:02:35]}  Rxb8 {[%clk 0:02:07]} 21. b3 {[%clk 0:02:36]}  Nc6 {[%clk 0:02:05]} 22. g3 {[%clk 0:02:17]}  Nd4 {[%clk 0:02:04]} 23. Bd1 {[%clk 0:02:05]}  a5 {[%clk 0:02:02]} 24. f4 {[%clk 0:02:04]}  Nc6 {[%clk 0:01:44]} 25. e5 {[%clk 0:02:02]}  Bd8 {[%clk 0:01:43]} 26. Bf3 {[%clk 0:02:02]}  Nb4 {[%clk 0:01:42]} 27. Rd1 {[%clk 0:02:01]}  Rc8 {[%clk 0:01:23]} 28. Bd6 {[%clk 0:01:48]}  Bb6 {[%clk 0:01:19]} 29. a3 {[%clk 0:01:43]}  Nc6 {[%clk 0:01:12]} 30. b4 {[%clk 0:01:43]}  Nd4 {[%clk 0:01:09]} 31. c5 {[%clk 0:01:38]}  Bxc5 {[%clk 0:01:02]} 32. Bb7 {[%clk 0:01:22]}  Nb5 {[%clk 0:00:38]} 33. Bxc8 {[%clk 0:01:20]}  Nc3+ {[%clk 0:00:38]} 34. Kc2 {[%clk 0:01:21]}  Nxd1 {[%clk 0:00:37]} 35. Bxc5 {[%clk 0:01:21]}  axb4 {[%clk 0:00:36]} 36. axb4 {[%clk 0:01:21]}  Kg7 {[%clk 0:00:34]} 37. Kxd1 {[%clk 0:01:21]}  Kh6 {[%clk 0:00:33]} 38. b5 {[%clk 0:01:21]}  Kh7 {[%clk 0:00:33]} 39. b6 {[%clk 0:01:22]}  Kg7 {[%clk 0:00:28]} 40. b7 {[%clk 0:01:22]}  Kh7 {[%clk 0:00:28]} 41. b8=Q {[%clk 0:01:22]}  g5 {[%clk 0:00:28]} 42. Qc7+ {[%clk 0:01:22]}  Kg6 {[%clk 0:00:28]} 43. Bxe6 {[%clk 0:01:18]}  g4 {[%clk 0:00:25]} 44. Qf7+ {[%clk 0:01:18]}  Kh6 {[%clk 0:00:25]} 45. Bf8# {[%clk 0:01:19]} 1-0


[Site "https://www.chess.com"]

[Event "Titled Tuesday Blitz November 07 Late 2023"]
[White "Shapiro, Daniel"]
[Black "Shuvalova, Polina"]
[WhiteFideId "2001780"]
[BlackFideId "24171760"]
[WhiteElo "2332"]
[BlackElo "2651"]
[Result "0-1"]
[Round "1"]
[TimeControl "180+1"]
[Date "2023.11.07"]
[WhiteClock "0:00:00"]
[BlackClock "0:00:39"]
[Board "104"]

1. d4 {[%clk 0:02:47]}  c6 {[%clk 0:02:58]} 2. c4 {[%clk 0:02:46]}  e6 {[%clk 0:02:58]} 3. Nf3 {[%clk 0:02:45]}  d5 {[%clk 0:02:56]} 4. Qb3 {[%clk 0:02:44]}  Nf6 {[%clk 0:02:55]} 5. Nc3 {[%clk 0:02:43]}  Be7 {[%clk 0:02:52]} 6. g3 {[%clk 0:02:43]}  O-O {[%clk 0:02:52]} 7. Bg2 {[%clk 0:02:42]}  dxc4 {[%clk 0:02:51]} 8. Qxc4 {[%clk 0:02:42]}  b5 {[%clk 0:02:52]} 9. Qd3 {[%clk 0:02:37]}  Bb7 {[%clk 0:02:49]} 10. Ne5 {[%clk 0:02:28]}  a6 {[%clk 0:02:40]} 11. O-O {[%clk 0:02:26]}  Qc8 {[%clk 0:02:30]} 12. a4 {[%clk 0:01:52]}  Nbd7 {[%clk 0:02:27]} 13. f4 {[%clk 0:01:47]}  b4 {[%clk 0:02:22]} 14. Ne4 {[%clk 0:01:45]}  c5 {[%clk 0:02:20]} 15. Nxf6+ {[%clk 0:01:33]}  Nxf6 {[%clk 0:02:17]} 16. Be3 {[%clk 0:01:10]}  Rd8 {[%clk 0:02:13]} 17. Rfd1 {[%clk 0:00:47]}  Bxg2 {[%clk 0:02:12]} 18. Kxg2 {[%clk 0:00:46]}  Qb7+ {[%clk 0:02:12]} 19. Kg1 {[%clk 0:00:41]}  Rac8 {[%clk 0:01:54]} 20. Qb3 {[%clk 0:00:29]}  cxd4 {[%clk 0:01:51]} 21. Rxd4 {[%clk 0:00:26]}  Rxd4 {[%clk 0:01:50]} 22. Bxd4 {[%clk 0:00:26]}  Qe4 {[%clk 0:01:51]} 23. Qd3 {[%clk 0:00:18]}  Rc2 {[%clk 0:01:32]} 24. b3 {[%clk 0:00:12]}  Qxd3 {[%clk 0:01:09]} 25. exd3 {[%clk 0:00:12]}  Nd5 {[%clk 0:01:07]} 26. Rd1 {[%clk 0:00:09]}  f6 {[%clk 0:01:06]} 27. Nf3 {[%clk 0:00:08]}  Kf7 {[%clk 0:01:00]} 28. Rd2 {[%clk 0:00:07]}  Rc1+ {[%clk 0:01:00]} 29. Kf2 {[%clk 0:00:07]}  Bc5 {[%clk 0:00:59]} 30. Bxc5 {[%clk 0:00:06]}  Rxc5 {[%clk 0:01:00]} 31. Nd4 {[%clk 0:00:06]}  Rc3 {[%clk 0:00:59]} 32. Nc2 {[%clk 0:00:05]}  Rxb3 {[%clk 0:00:58]} 33. Nd4 {[%clk 0:00:04]}  Rc3 {[%clk 0:00:57]} 34. Ke2 {[%clk 0:00:02]}  a5 {[%clk 0:00:57]} 35. Rb2 {[%clk 0:00:02]}  h5 {[%clk 0:00:55]} 36. Nb5 {[%clk 0:00:02]}  Rc6 {[%clk 0:00:50]} 37. Nd4 {[%clk 0:00:02]}  Rc1 {[%clk 0:00:49]} 38. Nb5 {[%clk 0:00:01]}  Ra1 {[%clk 0:00:48]} 39. Nd6+ {[%clk 0:00:01]}  Ke7 {[%clk 0:00:48]} 40. Ne4 {[%clk 0:00:01]}  Rxa4 {[%clk 0:00:48]} 41. Rc2 {[%clk 0:00:00]}  b3 {[%clk 0:00:39]} 0-1


[Site "https://www.chess.com"]

[Event "Titled Tuesday Blitz November 07 Late 2023"]
[White "Arman, Deniz"]
[Black "Harriott, Tyrell"]
[WhiteFideId "6302106"]
[BlackFideId "2086484"]
[WhiteElo "2647"]
[BlackElo "2331"]
[Result "1-0"]
[Round "1"]
[TimeControl "180+1"]
[Date "2023.11.07"]
[WhiteClock "0:01:31"]
[BlackClock "0:00:44"]
[Board "105"]

1. e4 {[%clk 0:02:59]}  d5 {[%clk 0:02:50]} 2. exd5 {[%clk 0:02:59]}  Nf6 {[%clk 0:02:42]} 3. Bb5+ {[%clk 0:02:56]}  Nbd7 {[%clk 0:02:32]} 4. d4 {[%clk 0:02:49]}  a6 {[%clk 0:02:31]} 5. Be2 {[%clk 0:02:48]}  b5 {[%clk 0:02:30]} 6. a4 {[%clk 0:02:45]}  b4 {[%clk 0:02:29]} 7. c4 {[%clk 0:02:43]}  bxc3 {[%clk 0:02:28]} 8. bxc3 {[%clk 0:02:43]}  Nxd5 {[%clk 0:02:29]} 9. Bf3 {[%clk 0:02:36]}  c6 {[%clk 0:02:28]} 10. Ba3 {[%clk 0:02:33]}  g6 {[%clk 0:02:26]} 11. c4 {[%clk 0:02:28]}  Qa5+ {[%clk 0:02:22]} 12. Qd2 {[%clk 0:02:26]}  Qxd2+ {[%clk 0:02:18]} 13. Nxd2 {[%clk 0:02:23]}  N5b6 {[%clk 0:02:05]} 14. Bxc6 {[%clk 0:02:20]}  Rb8 {[%clk 0:02:04]} 15. a5 {[%clk 0:02:13]}  Na8 {[%clk 0:02:01]} 16. Ngf3 {[%clk 0:02:10]}  Bg7 {[%clk 0:01:56]} 17. O-O {[%clk 0:02:08]}  O-O {[%clk 0:01:45]} 18. Bxe7 {[%clk 0:02:01]}  Re8 {[%clk 0:01:45]} 19. Bd6 {[%clk 0:02:01]}  Rb2 {[%clk 0:01:35]} 20. Bxa8 {[%clk 0:02:00]}  Nf8 {[%clk 0:01:29]} 21. Ba3 {[%clk 0:01:54]}  Rb8 {[%clk 0:01:23]} 22. Bc6 {[%clk 0:01:54]}  Bd7 {[%clk 0:01:22]} 23. Bxf8 {[%clk 0:01:49]}  Bxc6 {[%clk 0:01:19]} 24. Bxg7 {[%clk 0:01:50]}  Bxf3 {[%clk 0:01:16]} 25. Nxf3 {[%clk 0:01:49]}  Kxg7 {[%clk 0:01:16]} 26. Rfe1 {[%clk 0:01:47]}  f6 {[%clk 0:01:15]} 27. Rxe8 {[%clk 0:01:46]}  Rxe8 {[%clk 0:01:14]} 28. d5 {[%clk 0:01:46]}  Rc8 {[%clk 0:01:14]} 29. Rc1 {[%clk 0:01:45]}  Kf7 {[%clk 0:01:11]} 30. c5 {[%clk 0:01:44]}  Ke7 {[%clk 0:01:11]} 31. Nd4 {[%clk 0:01:43]}  Kd7 {[%clk 0:01:09]} 32. Nc6 {[%clk 0:01:35]}  Re8 {[%clk 0:01:04]} 33. Kf1 {[%clk 0:01:34]}  Kc7 {[%clk 0:01:03]} 34. Re1 {[%clk 0:01:32]}  Rxe1+ {[%clk 0:00:57]} 35. Kxe1 {[%clk 0:01:32]}  Kb7 {[%clk 0:00:53]} 36. Kd2 {[%clk 0:01:28]}  Kc7 {[%clk 0:00:54]} 37. Ke3 {[%clk 0:01:28]}  Kb7 {[%clk 0:00:54]} 38. Kd4 {[%clk 0:01:28]}  Kc7 {[%clk 0:00:54]} 39. f4 {[%clk 0:01:28]}  Kb7 {[%clk 0:00:54]} 40. g4 {[%clk 0:01:28]}  Kc7 {[%clk 0:00:54]} 41. h4 {[%clk 0:01:28]}  h5 {[%clk 0:00:49]} 42. g5 {[%clk 0:01:27]}  fxg5 {[%clk 0:00:48]} 43. fxg5 {[%clk 0:01:28]}  Kd7 {[%clk 0:00:48]} 44. Ne5+ {[%clk 0:01:28]}  Ke7 {[%clk 0:00:47]} 45. Nxg6+ {[%clk 0:01:29]}  Kf7 {[%clk 0:00:47]} 46. Nf4 {[%clk 0:01:30]}  Kg7 {[%clk 0:00:47]} 47. Nxh5+ {[%clk 0:01:29]}  Kf7 {[%clk 0:00:47]} 48. Ng3 {[%clk 0:01:30]}  Ke7 {[%clk 0:00:47]} 49. Ke5 {[%clk 0:01:30]}  Kf7 {[%clk 0:00:48]} 50. h5 {[%clk 0:01:30]}  Ke7 {[%clk 0:00:48]} 51. c6 {[%clk 0:01:30]}  Kd8 {[%clk 0:00:48]} 52. d6 {[%clk 0:01:30]}  Kc8 {[%clk 0:00:48]} 53. Ke6 {[%clk 0:01:31]}  Kb8 {[%clk 0:00:48]} 54. g6 {[%clk 0:01:31]}  Ka8 {[%clk 0:00:48]} 55. g7 {[%clk 0:01:31]}  Ka7 {[%clk 0:00:48]} 56. h6 {[%clk 0:01:31]}  Ka8 {[%clk 0:00:46]} 57. h7 {[%clk 0:01:31]}  Ka7 {[%clk 0:00:46]} 58. Nf5 {[%clk 0:01:31]}  Ka8 {[%clk 0:00:46]} 59. g8=Q+ {[%clk 0:01:31]}  Ka7 {[%clk 0:00:44]} 60. Qg7+ {[%clk 0:01:31]} 1-0


[Site "https://www.chess.com"]

[Event "Titled Tuesday Blitz November 07 Late 2023"]
[White "MariusBieliauskas"]
[Black "Chor, Kevin"]
[BlackFideId "2090740"]
[WhiteElo "2329"]
[BlackElo "2647"]
[Result "0-1"]
[Round "1"]
[TimeControl "180+1"]
[Date "2023.11.07"]
[WhiteClock "0:00:00"]
[BlackClock "0:00:15"]
[Board "106"]

1. d4 {[%clk 0:03:00]}  Nf6 {[%clk 0:03:00]} 2. c4 {[%clk 0:03:00]}  e6 {[%clk 0:03:00]} 3. Nf3 {[%clk 0:03:00]}  d5 {[%clk 0:02:54]} 4. g3 {[%clk 0:03:00]}  dxc4 {[%clk 0:02:44]} 5. Bg2 {[%clk 0:03:00]}  Bb4+ {[%clk 0:02:42]} 6. Bd2 {[%clk 0:02:58]}  c5 {[%clk 0:02:42]} 7. O-O {[%clk 0:02:51]}  O-O {[%clk 0:02:42]} 8. dxc5 {[%clk 0:02:46]}  Bxc5 {[%clk 0:02:41]} 9. Qc2 {[%clk 0:02:40]}  Nc6 {[%clk 0:02:32]} 10. Qxc4 {[%clk 0:02:38]}  Be7 {[%clk 0:02:26]} 11. Rd1 {[%clk 0:02:32]}  e5 {[%clk 0:02:25]} 12. Nc3 {[%clk 0:02:27]}  Be6 {[%clk 0:02:25]} 13. Qa4 {[%clk 0:02:27]}  Qc7 {[%clk 0:02:15]} 14. Bg5 {[%clk 0:02:24]}  Rfd8 {[%clk 0:02:05]} 15. Rac1 {[%clk 0:02:19]}  a6 {[%clk 0:02:03]} 16. Bxf6 {[%clk 0:02:03]}  Bxf6 {[%clk 0:02:04]} 17. Ne4 {[%clk 0:02:03]}  Be7 {[%clk 0:02:01]} 18. Nfg5 {[%clk 0:01:53]}  Bd7 {[%clk 0:01:44]} 19. Qc4 {[%clk 0:01:45]}  Be8 {[%clk 0:01:44]} 20. h4 {[%clk 0:01:31]}  h6 {[%clk 0:01:41]} 21. Nf3 {[%clk 0:01:31]}  Kh8 {[%clk 0:01:42]} 22. a3 {[%clk 0:01:18]}  Rac8 {[%clk 0:01:28]} 23. b4 {[%clk 0:01:17]}  Qb6 {[%clk 0:01:18]} 24. Rxd8 {[%clk 0:01:12]}  Rxd8 {[%clk 0:01:19]} 25. Nc5 {[%clk 0:01:03]}  Bxc5 {[%clk 0:01:07]} 26. Qxc5 {[%clk 0:00:58]}  Qxc5 {[%clk 0:01:07]} 27. Rxc5 {[%clk 0:00:58]}  Rd1+ {[%clk 0:01:07]} 28. Kh2 {[%clk 0:00:58]}  f6 {[%clk 0:00:56]} 29. Rc3 {[%clk 0:00:57]}  Bh5 {[%clk 0:00:50]} 30. Rc2 {[%clk 0:00:46]}  e4 {[%clk 0:00:49]} 31. Nd2 {[%clk 0:00:41]}  f5 {[%clk 0:00:49]} 32. Nb3 {[%clk 0:00:39]}  Ne5 {[%clk 0:00:48]} 33. Bh3 {[%clk 0:00:27]}  Bxe2 {[%clk 0:00:29]} 34. Rc8+ {[%clk 0:00:19]}  Kh7 {[%clk 0:00:28]} 35. Bxf5+ {[%clk 0:00:19]}  g6 {[%clk 0:00:29]} 36. Bxe4 {[%clk 0:00:19]}  Nf3+ {[%clk 0:00:29]} 37. Bxf3 {[%clk 0:00:18]}  Bxf3 {[%clk 0:00:30]} 38. g4 {[%clk 0:00:18]}  Bxg4 {[%clk 0:00:27]} 39. Rc7+ {[%clk 0:00:18]}  Rd7 {[%clk 0:00:28]} 40. Rxd7+ {[%clk 0:00:17]}  Bxd7 {[%clk 0:00:29]} 41. Nc5 {[%clk 0:00:18]}  Bc6 {[%clk 0:00:29]} 42. Kg3 {[%clk 0:00:18]}  Kg7 {[%clk 0:00:30]} 43. Kf4 {[%clk 0:00:17]}  Kf6 {[%clk 0:00:31]} 44. Nb3 {[%clk 0:00:15]}  g5+ {[%clk 0:00:27]} 45. hxg5+ {[%clk 0:00:15]}  hxg5+ {[%clk 0:00:28]} 46. Ke3 {[%clk 0:00:16]}  Ke5 {[%clk 0:00:28]} 47. Nd4 {[%clk 0:00:16]}  Bd5 {[%clk 0:00:27]} 48. Ne2 {[%clk 0:00:16]}  Kd6 {[%clk 0:00:24]} 49. f4 {[%clk 0:00:16]}  g4 {[%clk 0:00:24]} 50. Ng3 {[%clk 0:00:14]}  Kc6 {[%clk 0:00:24]} 51. f5 {[%clk 0:00:13]}  Kb5 {[%clk 0:00:24]} 52. Kd4 {[%clk 0:00:13]}  Bf7 {[%clk 0:00:21]} 53. Kc3 {[%clk 0:00:10]}  Kc6 {[%clk 0:00:21]} 54. Kd4 {[%clk 0:00:08]}  b6 {[%clk 0:00:21]} 55. Ke5 {[%clk 0:00:08]}  Kb5 {[%clk 0:00:21]} 56. Kf6 {[%clk 0:00:08]}  Ba2 {[%clk 0:00:18]} 57. Kg5 {[%clk 0:00:08]}  Ka4 {[%clk 0:00:18]} 58. Kxg4 {[%clk 0:00:08]}  Kxa3 {[%clk 0:00:19]} 59. f6 {[%clk 0:00:08]}  Kxb4 {[%clk 0:00:19]} 60. Ne4 {[%clk 0:00:07]}  a5 {[%clk 0:00:18]} 61. Kf5 {[%clk 0:00:07]}  a4 {[%clk 0:00:17]} 62. Ng5 {[%clk 0:00:06]}  Bg8 {[%clk 0:00:16]} 63. f7 {[%clk 0:00:06]}  Bxf7 {[%clk 0:00:16]} 64. Nxf7 {[%clk 0:00:07]}  a3 {[%clk 0:00:17]} 65. Ne5 {[%clk 0:00:06]}  a2 {[%clk 0:00:17]} 66. Nd3+ {[%clk 0:00:06]}  Ka3 {[%clk 0:00:17]} 67. Ne1 {[%clk 0:00:00]}  Kb3 {[%clk 0:00:15]} 0-1


[Site "https://www.chess.com"]

[Event "Titled Tuesday Blitz November 07 Late 2023"]
[White "Zeynalli, Rashad"]
[Black "Fernandez Bustamante, Leancy B."]
[WhiteFideId "13403320"]
[BlackFideId "3523870"]
[WhiteElo "2646"]
[BlackElo "2329"]
[Result "0-1"]
[Round "1"]
[TimeControl "180+1"]
[Date "2023.11.07"]
[WhiteClock "0:00:32"]
[BlackClock "0:01:05"]
[Board "107"]

1. d4 {[%clk 0:03:00]}  c5 {[%clk 0:02:58]} 2. d5 {[%clk 0:03:00]}  d6 {[%clk 0:02:58]} 3. Nc3 {[%clk 0:02:59]}  e5 {[%clk 0:02:58]} 4. e4 {[%clk 0:02:56]}  Nf6 {[%clk 0:02:58]} 5. Nf3 {[%clk 0:02:55]}  g6 {[%clk 0:02:58]} 6. Nd2 {[%clk 0:02:54]}  Bg7 {[%clk 0:02:58]} 7. Be2 {[%clk 0:02:54]}  O-O {[%clk 0:02:57]} 8. O-O {[%clk 0:02:54]}  Na6 {[%clk 0:02:56]} 9. Nc4 {[%clk 0:02:51]}  Nc7 {[%clk 0:02:55]} 10. a4 {[%clk 0:02:51]}  b6 {[%clk 0:02:54]} 11. f3 {[%clk 0:02:46]}  Rb8 {[%clk 0:02:51]} 12. Nb5 {[%clk 0:02:44]}  Nxb5 {[%clk 0:02:46]} 13. axb5 {[%clk 0:02:43]}  Rb7 {[%clk 0:02:46]} 14. Bg5 {[%clk 0:02:39]}  h6 {[%clk 0:02:44]} 15. Bh4 {[%clk 0:02:40]}  g5 {[%clk 0:02:36]} 16. Bf2 {[%clk 0:02:39]}  Nh5 {[%clk 0:02:34]} 17. g3 {[%clk 0:02:35]}  Nf6 {[%clk 0:02:28]} 18. Qd3 {[%clk 0:02:29]}  Bh3 {[%clk 0:02:25]} 19. Rfe1 {[%clk 0:02:25]}  Ne8 {[%clk 0:02:23]} 20. g4 {[%clk 0:02:20]}  h5 {[%clk 0:02:22]} 21. Ra6 {[%clk 0:02:16]}  Qd7 {[%clk 0:02:18]} 22. Ne3 {[%clk 0:02:09]}  Nf6 {[%clk 0:02:05]} 23. Rea1 {[%clk 0:01:58]}  hxg4 {[%clk 0:01:57]} 24. fxg4 {[%clk 0:01:56]}  Bxg4 {[%clk 0:01:56]} 25. Nxg4 {[%clk 0:01:41]}  Nxg4 {[%clk 0:01:57]} 26. Bg3 {[%clk 0:01:36]}  Nh6 {[%clk 0:01:28]} 27. Qa3 {[%clk 0:01:24]}  f5 {[%clk 0:01:19]} 28. exf5 {[%clk 0:01:10]}  Nxf5 {[%clk 0:01:09]} 29. Rxa7 {[%clk 0:01:07]}  Nxg3 {[%clk 0:01:08]} 30. hxg3 {[%clk 0:01:04]}  Rxa7 {[%clk 0:01:06]} 31. Qxa7 {[%clk 0:00:32]}  Qh3 {[%clk 0:01:05]} 0-1


[Site "https://www.chess.com"]

[Event "Titled Tuesday Blitz November 07 Late 2023"]
[White "Nita, Lucian"]
[Black "Adla, Diego"]
[WhiteFideId "1206923"]
[BlackFideId "100072"]
[WhiteElo "2327"]
[BlackElo "2646"]
[Result "0-1"]
[Round "1"]
[TimeControl "180+1"]
[Date "2023.11.07"]
[WhiteClock "0:02:04"]
[BlackClock "0:02:13"]
[Board "108"]

1. e4 {[%clk 0:02:59]}  e5 {[%clk 0:02:59]} 2. d3 {[%clk 0:02:59]}  Bc5 {[%clk 0:02:58]} 3. Nf3 {[%clk 0:02:58]}  d6 {[%clk 0:02:58]} 4. Be2 {[%clk 0:02:58]}  f5 {[%clk 0:02:58]} 5. O-O {[%clk 0:02:58]}  Nf6 {[%clk 0:02:57]} 6. Nbd2 {[%clk 0:02:56]}  a5 {[%clk 0:02:56]} 7. c3 {[%clk 0:02:56]}  O-O {[%clk 0:02:55]} 8. exf5 {[%clk 0:02:52]}  Bxf5 {[%clk 0:02:54]} 9. Qb3+ {[%clk 0:02:51]}  Kh8 {[%clk 0:02:53]} 10. Qxb7 {[%clk 0:02:50]}  Nbd7 {[%clk 0:02:53]} 11. Qb3 {[%clk 0:02:50]}  a4 {[%clk 0:02:52]} 12. Qd1 {[%clk 0:02:50]}  Qe7 {[%clk 0:02:47]} 13. d4 {[%clk 0:02:50]}  Ba7 {[%clk 0:02:45]} 14. dxe5 {[%clk 0:02:49]}  Nxe5 {[%clk 0:02:44]} 15. Nxe5 {[%clk 0:02:49]}  Qxe5 {[%clk 0:02:43]} 16. Nf3 {[%clk 0:02:49]}  Qa5 {[%clk 0:02:42]} 17. Bd3 {[%clk 0:02:49]}  Bg4 {[%clk 0:02:39]} 18. h3 {[%clk 0:02:47]}  Bh5 {[%clk 0:02:36]} 19. Be2 {[%clk 0:02:48]}  a3 {[%clk 0:02:35]} 20. b4 {[%clk 0:02:46]}  Qf5 {[%clk 0:02:30]} 21. Bxa3 {[%clk 0:02:41]}  Ne4 {[%clk 0:02:29]} 22. Nd4 {[%clk 0:02:36]}  Bxe2 {[%clk 0:02:25]} 23. Qxe2 {[%clk 0:02:25]}  Nxc3 {[%clk 0:02:24]} 24. Qd3 {[%clk 0:02:09]}  Bxd4 {[%clk 0:02:22]} 25. Qxf5 {[%clk 0:02:06]}  Rxf5 {[%clk 0:02:20]} 26. Bc1 {[%clk 0:02:04]}  Ne2+ {[%clk 0:02:13]} 0-1


[Site "https://www.chess.com"]

[Event "Titled Tuesday Blitz November 07 Late 2023"]
[White "Maect19"]
[Black "Janaszak, Dawid"]
[BlackFideId "1119206"]
[WhiteElo "2325"]
[BlackElo "2644"]
[Result "0-1"]
[Round "1"]
[TimeControl "180+1"]
[Date "2023.11.07"]
[WhiteClock "0:00:09"]
[BlackClock "0:00:46"]
[Board "110"]

1. d4 {[%clk 0:03:00]}  d5 {[%clk 0:02:59]} 2. Nf3 {[%clk 0:03:00]}  c5 {[%clk 0:02:58]} 3. e3 {[%clk 0:02:59]}  e6 {[%clk 0:02:57]} 4. Bd3 {[%clk 0:02:59]}  Nf6 {[%clk 0:02:57]} 5. O-O {[%clk 0:02:58]}  Nc6 {[%clk 0:02:57]} 6. b3 {[%clk 0:02:58]}  cxd4 {[%clk 0:02:55]} 7. exd4 {[%clk 0:02:57]}  Bd6 {[%clk 0:02:56]} 8. Bb2 {[%clk 0:02:56]}  O-O {[%clk 0:02:56]} 9. Ne5 {[%clk 0:02:54]}  Bxe5 {[%clk 0:02:49]} 10. dxe5 {[%clk 0:02:54]}  Nd7 {[%clk 0:02:50]} 11. f4 {[%clk 0:02:44]}  Nc5 {[%clk 0:02:50]} 12. Rf3 {[%clk 0:02:05]}  Nxd3 {[%clk 0:02:46]} 13. Qxd3 {[%clk 0:02:05]}  Qb6+ {[%clk 0:02:42]} 14. Kh1 {[%clk 0:02:03]}  Bd7 {[%clk 0:02:36]} 15. Rh3 {[%clk 0:02:00]}  g6 {[%clk 0:02:29]} 16. Nd2 {[%clk 0:01:58]}  Kg7 {[%clk 0:02:20]} 17. Nf3 {[%clk 0:01:54]}  h6 {[%clk 0:02:14]} 18. Qd2 {[%clk 0:01:50]}  Rh8 {[%clk 0:02:12]} 19. Rf1 {[%clk 0:01:47]}  Rac8 {[%clk 0:02:09]} 20. Rg3 {[%clk 0:01:36]}  Qa6 {[%clk 0:02:02]} 21. Ra1 {[%clk 0:01:26]}  Kf8 {[%clk 0:01:48]} 22. a4 {[%clk 0:01:16]}  Ke8 {[%clk 0:01:40]} 23. b4 {[%clk 0:01:05]}  Qc4 {[%clk 0:01:31]} 24. b5 {[%clk 0:01:00]}  Ne7 {[%clk 0:01:30]} 25. Nd4 {[%clk 0:00:50]}  Qc7 {[%clk 0:01:14]} 26. Rc3 {[%clk 0:00:46]}  Qb8 {[%clk 0:01:13]} 27. Ba3 {[%clk 0:00:42]}  Rxc3 {[%clk 0:01:13]} 28. Qxc3 {[%clk 0:00:41]}  Qd8 {[%clk 0:01:09]} 29. Bd6 {[%clk 0:00:35]}  Nc8 {[%clk 0:01:06]} 30. Bc7 {[%clk 0:00:31]}  Qe7 {[%clk 0:01:06]} 31. a5 {[%clk 0:00:29]}  Kf8 {[%clk 0:01:05]} 32. a6 {[%clk 0:00:20]}  bxa6 {[%clk 0:01:03]} 33. bxa6 {[%clk 0:00:19]}  Kg7 {[%clk 0:01:02]} 34. Ba5 {[%clk 0:00:17]}  Qh4 {[%clk 0:01:00]} 35. Nf3 {[%clk 0:00:16]}  Qxf4 {[%clk 0:00:59]} 36. Qc7 {[%clk 0:00:16]}  Bb5 {[%clk 0:00:54]} 37. Bc3 {[%clk 0:00:14]}  g5 {[%clk 0:00:48]} 38. Bd2 {[%clk 0:00:14]}  Qc4 {[%clk 0:00:46]} 39. Be3 {[%clk 0:00:09]}  Qxc7 {[%clk 0:00:46]} 0-1


[Site "https://www.chess.com"]

[Event "Titled Tuesday Blitz November 07 Late 2023"]
[White "Volkov, Maksim"]
[Black "Pavlidou, Ekaterini"]
[WhiteFideId "54123070"]
[BlackFideId "4213262"]
[WhiteElo "2643"]
[BlackElo "2324"]
[Result "1-0"]
[Round "1"]
[TimeControl "180+1"]
[Date "2023.11.07"]
[WhiteClock "0:01:27"]
[BlackClock "0:00:16"]
[Board "111"]

1. e4 {[%clk 0:03:00]}  c5 {[%clk 0:02:59]} 2. Nf3 {[%clk 0:03:00]}  Nc6 {[%clk 0:02:58]} 3. Bb5 {[%clk 0:02:58]}  e6 {[%clk 0:02:56]} 4. O-O {[%clk 0:02:56]}  Nge7 {[%clk 0:02:55]} 5. c3 {[%clk 0:02:53]}  a6 {[%clk 0:02:51]} 6. Ba4 {[%clk 0:02:53]}  b5 {[%clk 0:02:51]} 7. Bc2 {[%clk 0:02:53]}  Bb7 {[%clk 0:02:43]} 8. Re1 {[%clk 0:02:52]}  d5 {[%clk 0:02:41]} 9. exd5 {[%clk 0:02:48]}  Nxd5 {[%clk 0:02:40]} 10. d4 {[%clk 0:02:48]}  cxd4 {[%clk 0:02:33]} 11. Nxd4 {[%clk 0:02:48]}  Bc5 {[%clk 0:02:21]} 12. Nxc6 {[%clk 0:02:36]}  Bxc6 {[%clk 0:02:21]} 13. Nd2 {[%clk 0:02:36]}  Nf4 {[%clk 0:02:08]} 14. Ne4 {[%clk 0:02:10]}  Qxd1 {[%clk 0:01:49]} 15. Rxd1 {[%clk 0:02:11]}  Ne2+ {[%clk 0:01:28]} 16. Kf1 {[%clk 0:02:11]}  Nxc1 {[%clk 0:01:25]} 17. Nxc5 {[%clk 0:02:10]}  Nxa2 {[%clk 0:01:17]} 18. Rxa2 {[%clk 0:02:08]}  Ke7 {[%clk 0:01:13]} 19. Rxa6 {[%clk 0:02:05]}  Rxa6 {[%clk 0:01:11]} 20. Nxa6 {[%clk 0:02:06]}  Ra8 {[%clk 0:01:11]} 21. Nb4 {[%clk 0:02:06]}  Bb7 {[%clk 0:01:09]} 22. f3 {[%clk 0:02:05]}  f5 {[%clk 0:01:08]} 23. Ke2 {[%clk 0:02:05]}  g6 {[%clk 0:01:06]} 24. Ke3 {[%clk 0:02:05]}  g5 {[%clk 0:01:05]} 25. g3 {[%clk 0:02:05]}  h5 {[%clk 0:01:03]} 26. f4 {[%clk 0:02:04]}  gxf4+ {[%clk 0:01:02]} 27. Kxf4 {[%clk 0:02:05]}  Rg8 {[%clk 0:00:55]} 28. Re1 {[%clk 0:01:53]}  Kf6 {[%clk 0:00:52]} 29. Ke3 {[%clk 0:01:46]}  h4 {[%clk 0:00:50]} 30. Kf2 {[%clk 0:01:45]}  hxg3+ {[%clk 0:00:48]} 31. hxg3 {[%clk 0:01:46]}  f4 {[%clk 0:00:48]} 32. gxf4 {[%clk 0:01:43]}  Rg2+ {[%clk 0:00:47]} 33. Ke3 {[%clk 0:01:43]}  Rg3+ {[%clk 0:00:43]} 34. Kd4 {[%clk 0:01:43]}  Rf3 {[%clk 0:00:42]} 35. Kc5 {[%clk 0:01:41]}  Rxf4 {[%clk 0:00:38]} 36. Kxb5 {[%clk 0:01:41]}  Rf2 {[%clk 0:00:34]} 37. c4 {[%clk 0:01:36]}  Bg2 {[%clk 0:00:25]} 38. c5 {[%clk 0:01:31]}  Rf4 {[%clk 0:00:20]} 39. c6 {[%clk 0:01:28]}  Bf1+ {[%clk 0:00:16]} 40. Rxf1 {[%clk 0:01:27]} 1-0


[Site "https://www.chess.com"]